bitfinex/quotes_BTCUSD_20210101
["timestamp","ask_amount","ask_price","bid_price","bid_amount"]
[1609485494201,0.0006,29033.0,29023.0,3.596658]
[1609485494698,0.0008,29032.0,29023.0,3.596658]
[1609485494899,0.0008,29032.0,29023.0,1.79921945]
[1609485495121,0.0008,29032.0,29027.0,0.516]
[1609485495323,0.0008,29032.0,29028.0,0.014921]
[1609485495618,1.0,29031.0,29028.0,0.254871]
[1609485495820,1.08,29031.0,29028.0,0.23995]
[1609485496122,1.03346812,29030.0,29018.0,0.01493]
[1609485496320,1.4094045,29029.0,29018.0,0.01493]
[1609485496517,1.3994045,29028.0,29018.0,0.00993]
[1609485496720,0.99,29027.0,29018.0,0.009943]
[1609485497085,0.99,29027.0,29020.0,0.5162]
[1609485497086,0.03346812,29025.0,29020.0,0.5162]
[1609485497281,1.17584,29024.0,29020.0,0.5162]
[1609485497477,1.354314,29023.0,29020.0,0.5162]
[1609485497675,0.364314,29021.0,29020.0,0.5162]
[1609485497882,1.434314,29021.0,29020.0,0.5162]
[1609485498274,1.07,29021.0,29020.0,0.5162]
[1609485498476,1.434314,29021.0,29020.0,1.5162]
[1609485498679,1.594314,29021.0,29020.0,1.5162]
[1609485498883,1.594314,29021.0,29020.0,1.52708737]
[1609485499278,0.24,29021.0,29020.0,1.52708737]
[1609485499478,1.07,29021.0,29020.0,1.52708737]
[1609485499678,0.444314,29021.0,29020.0,1.52708737]
[1609485499879,0.08,29021.0,29020.0,1.53703337]
[1609485500908,0.08,29027.0,29020.0,1.53703337]
[1609485501210,1.354314,29026.0,29020.0,1.52708737]
[1609485501410,0.364314,29024.0,29020.0,1.52708737]
[1609485501610,1.354314,29024.0,29020.0,1.52708737]
[1609485502111,0.364314,29024.0,29020.0,1.52708737]
[1609485502310,0.444314,29024.0,29020.0,1.52708737]
[1609485502613,0.08,29026.0,29021.0,0.009943]
[1609485502812,0.364314,29025.0,29021.0,0.23]
[1609485503010,0.364314,29025.0,29020.0,1.52708737]
[1609485503713,0.08,29026.0,29020.0,1.73708737]
[1609485503914,1.354314,29025.0,29020.0,1.73708737]
[1609485504114,0.364314,29023.0,29020.0,1.73708737]
[1609485504413,1.764314,29021.0,29020.0,1.73708737]
[1609485504911,3.014314,29021.0,29020.0,1.73708737]
[1609485505117,3.094314,29021.0,29020.0,1.22088737]
[1609485505312,1.694314,29021.0,29020.0,1.22088737]
[1609485505711,1.434314,29021.0,29020.0,1.22088737]
[1609485506450,0.444314,29021.0,29020.0,1.22088737]
[1609485506655,0.08,29023.0,29020.0,1.23083237]
[1609485506855,0.08,29023.0,29020.0,1.22088737]
[1609485506856,0.364314,29022.0,29020.0,1.22088737]
[1609485507256,1.93,29021.0,29020.0,1.22088737]
[1609485507453,0.08,29021.0,29020.0,1.22088737]
[1609485507657,0.08,29021.0,29020.0,1.23083337]
[1609485507856,0.364314,29027.0,29020.0,1.22088737]
[1609485508057,1.22100815,29028.0,29020.0,1.22088737]
[1609485508355,1.22100815,29028.0,29021.0,0.014941]
[1609485508753,1.14100815,29028.0,29021.0,0.014941]
[1609485509252,1.0,29028.0,29021.0,0.014941]
[1609485509855,1.055,29031.0,29021.0,0.014941]
[1609485510155,0.145,29030.0,29021.0,0.014941]
[1609485510319,0.364313,29029.0,29023.0,0.5162]
[1609485511015,0.364313,29030.0,29023.0,0.5162]
[1609485511214,0.21,29029.0,29023.0,0.5162]
[1609485511819,0.2096,29029.0,29024.0,0.014933]
[1609485512021,0.0008,29032.0,29024.0,0.4325935]
[1609485512222,0.0008,29032.0,29025.0,0.22]
[1609485512717,0.0008,29032.0,29026.0,0.014927]
[1609485513215,0.0008,29032.0,29028.0,0.530823]
[1609485514249,0.0008,29032.0,29029.0,0.015]
[1609485514451,0.0008,29032.0,29030.0,0.014919]
[1609485514750,0.0008,29032.0,29029.0,0.015]
[1609485514751,0.0008,29032.0,29031.0,0.029917]
[1609485515149,0.0008,29032.0,29031.0,0.014917]
[1609485515848,0.0008,29032.0,29030.0,0.5159]
[1609485520899,10.2165,29034.0,29030.0,0.5159]
[1609485521200,0.265,29033.0,29030.0,0.75107]
[1609485521601,10.2115,29034.0,29030.0,0.75107]
[1609485522003,0.364309,29033.0,29030.0,0.75107]
[1609485522299,10.2115,29034.0,29030.0,0.5159]
[1609485522598,0.4,29033.0,29030.0,0.5159]
[1609485524323,0.364309,29032.0,29030.0,0.5159]
[1609485524527,3.93,29031.0,29030.0,0.5159]
[1609485524725,4.294309,29031.0,29030.0,0.5159]
[1609485525256,5.284309,29031.0,29030.0,0.5159]
[1609485525910,2.864309,29030.0,29029.0,0.48734042]
[1609485526101,3.659309,29030.0,29029.0,0.48734042]
[1609485526304,3.659309,29030.0,29020.0,1.21]
[1609485526502,0.705,29029.0,29020.0,1.21]
[1609485527001,0.705,29029.0,29024.0,0.6881]
[1609485527243,0.11346812,29033.0,29024.0,0.6881]
[1609485527440,0.11346812,29033.0,29024.0,0.6831]
[1609485527641,0.03346812,29033.0,29024.0,0.87602]
[1609485528043,10.1915,29034.0,29024.0,0.87602]
[1609485528841,0.99,29033.0,29024.0,0.87602]
[1609485529147,0.03346812,29031.0,29024.0,0.87602]
[1609485529444,0.815,29032.0,29024.0,0.87602]
[1609485529745,0.815,29032.0,29024.0,0.72602]
[1609485529944,1.58,29031.0,29024.0,0.5331]
[1609485530146,0.99,29030.0,29025.0,0.0108846]
[1609485530345,1.354309,29030.0,29025.0,0.0108846]
[1609485530746,0.08,29029.0,29025.0,0.0108846]
[1609485530971,0.16,29028.0,29025.0,0.0108846]
[1609485531173,0.99,29027.0,29025.0,0.0108846]
[1609485531374,3.664309,29026.0,29025.0,0.0108846]
[1609485531676,4.654309,29026.0,29025.0,0.0108846]
[1609485531869,4.654309,29026.0,29025.0,4.6e-06]
[1609485532177,5.399309,29026.0,29025.0,4.6e-06]
[1609485532375,5.43277712,29026.0,29025.0,4.6e-06]
[1609485532577,5.51277712,29026.0,29025.0,4.6e-06]
[1609485532974,5.49777712,29026.0,29025.0,4.6e-06]
[1609485533475,4.474309,29026.0,29025.0,4.6e-06]
[1609485534172,1.174309,29026.0,29025.0,4.6e-06]
[1609485534378,0.349309,29026.0,29025.0,4.6e-06]
[1609485534578,0.429309,29026.0,29025.0,4.6e-06]
[1609485535473,0.429309,29026.0,29020.0,1.21]
[1609485536078,0.429309,29026.0,29023.0,0.5161]
[1609485536520,0.349309,29026.0,29023.0,0.5161]
[1609485538824,0.344309,29026.0,29023.0,0.5161]
[1609485539723,1.334309,29026.0,29023.0,0.5161]
[1609485539929,0.23,29025.0,29023.0,0.5161]
[1609485540127,2.114309,29024.0,29023.0,0.5161]
[1609485540381,2.194309,29024.0,29023.0,0.5161]
[1609485542276,0.894309,29024.0,29023.0,0.5161]
[1609485542476,0.444309,29024.0,29023.0,0.5161]
[1609485543178,2.294309,29024.0,29023.0,0.5161]
[1609485543680,3.284309,29024.0,29023.0,0.5161]
[1609485544019,3.284309,29024.0,29020.0,1.21]
[1609485544214,0.364313,29022.0,29020.0,1.21]
[1609485545516,0.444313,29022.0,29020.0,1.21]
[1609485546015,0.444313,29022.0,29020.0,0.21]
[1609485546220,0.46,29021.0,29020.0,0.21]
[1609485546419,2.834313,29021.0,29020.0,0.21]
[1609485546620,3.008293,29021.0,29020.0,0.21]
[1609485546826,3.008293,29021.0,29020.0,0.25444114]
[1609485547019,4.908293,29021.0,29020.0,0.25444114]
[1609485547225,4.94176112,29021.0,29020.0,0.21]
[1609485547423,5.69676112,29021.0,29020.0,0.21]
[1609485550040,2.80676112,29021.0,29020.0,0.21]
[1609485550441,2.773293,29021.0,29020.0,0.21]
[1609485551042,3.723293,29021.0,29020.0,0.21]
[1609485551745,4.713293,29021.0,29020.0,0.21]
[1609485552048,4.963293,29021.0,29020.0,0.21]
[1609485553141,5.29479602,29021.0,29020.0,0.21]
[1609485553339,4.963293,29021.0,29020.0,0.21]
[1609485553943,5.69676112,29021.0,29020.0,0.21]
[1609485554242,4.99676112,29021.0,29020.0,0.21]
[1609485554639,4.963293,29021.0,29020.0,0.21]
[1609485555040,4.99676112,29021.0,29020.0,0.21]
[1609485555527,4.963293,29021.0,29020.0,0.21]
[1609485555929,5.563293,29021.0,29020.0,0.21]
[1609485556134,4.963293,29021.0,29020.0,0.21]
[1609485557832,4.99676112,29021.0,29020.0,0.21]
[1609485558434,4.99676112,29021.0,29015.0,0.094584]
[1609485558640,0.364313,29016.0,29015.0,4e-06]
[1609485558842,1.77710512,29016.0,29015.0,4e-06]
[1609485559075,1.46778112,29016.0,29015.0,4e-06]
[1609485559276,1.68778112,29016.0,29015.0,4e-06]
[1609485560172,2.53578415,29016.0,29015.0,4e-06]
[1609485561877,3.47158553,29016.0,29015.0,4e-06]
[1609485562176,3.95895763,29016.0,29015.0,4e-06]
[1609485562375,4.95895763,29016.0,29015.0,4e-06]
[1609485563279,3.95895763,29016.0,29015.0,4e-06]
[1609485563473,3.16416131,29016.0,29015.0,4e-06]
[1609485564373,3.52845061,29016.0,29015.0,4e-06]
[1609485565515,3.41416131,29016.0,29015.0,4e-06]
[1609485566412,4.41416131,29016.0,29015.0,4e-06]
[1609485567215,4.77845061,29016.0,29015.0,4e-06]
[1609485568017,4.31416131,29016.0,29015.0,4e-06]
[1609485568442,5.10895763,29016.0,29015.0,4e-06]
[1609485568641,4.85895763,29016.0,29015.0,4e-06]
[1609485570632,4.06416131,29016.0,29015.0,4e-06]
[1609485571027,4.72649158,29016.0,29015.0,4e-06]
[1609485571232,4.72649158,29016.0,29003.0,0.84771588]
[1609485571430,0.6124651,29012.0,29003.0,0.84771588]
[1609485571635,0.33150302,29007.0,29003.0,0.84771588]
[1609485571830,3.564313,29004.0,29003.0,0.84771588]
[1609485572029,4.0416751,29004.0,29003.0,0.84771588]
[1609485572259,4.6516751,29004.0,29003.0,0.84771588]
[1609485572459,4.403523,29004.0,29003.0,0.84771588]
[1609485572660,4.6516751,29004.0,29003.0,0.84771588]
[1609485572862,4.403523,29004.0,29003.0,0.84771588]
[1609485573059,1.4516751,29004.0,29003.0,0.84771588]
[1609485573362,0.673523,29004.0,29003.0,0.84771588]
[1609485573564,0.9216751,29004.0,29003.0,0.84771588]
[1609485573861,1.273523,29004.0,29003.0,0.84771588]
[1609485574262,1.7716751,29004.0,29003.0,0.84771588]
[1609485574462,1.788523,29004.0,29003.0,0.84771588]
[1609485575264,1.188523,29004.0,29003.0,0.84771588]
[1609485575563,1.4366751,29004.0,29003.0,0.84771588]
[1609485575762,1.188523,29004.0,29003.0,0.84771588]
[1609485575984,1.4366751,29004.0,29003.0,0.84771588]
[1609485576190,1.188523,29004.0,29003.0,0.84771588]
[1609485576593,1.188523,29004.0,29003.0,1.04771588]
[1609485576795,0.959313,29004.0,29003.0,1.04771588]
[1609485576993,0.694313,29004.0,29003.0,0.84771588]
[1609485577794,0.33,29004.0,29003.0,0.86779588]
[1609485578095,0.25,29004.0,29003.0,0.86779588]
[1609485578290,0.39100506,29004.0,29003.0,1.06779588]
[1609485578592,0.39100506,29004.0,29003.0,0.84771588]
[1609485578792,1.75531806,29004.0,29003.0,0.84771588]
[1609485578992,1.05531806,29004.0,29003.0,0.84771588]
[1609485580591,1.04964906,29004.0,29003.0,0.84771588]
[1609485581293,0.74964906,29004.0,29003.0,0.84771588]
[1609485582117,0.608644,29004.0,29003.0,0.84771588]
[1609485585763,2.2567961,29004.0,29003.0,0.84771588]
[1609485585965,2.343644,29004.0,29003.0,0.84771588]
[1609485586161,0.943644,29004.0,29003.0,0.84771588]
[1609485586362,0.608644,29004.0,29003.0,0.84771588]
[1609485587495,0.244331,29004.0,29003.0,1.23855588]
[1609485587804,0.244331,29004.0,29003.0,3.74427531]
[1609485587998,0.16176059,29004.0,29003.0,4.22427531]
[1609485588196,0.16176059,29004.0,29003.0,6.11485573]
[1609485588396,0.16176059,29004.0,29003.0,6.30199209]
[1609485588599,0.978288,29016.0,29003.0,6.30199209]
[1609485588600,0.978288,29016.0,29004.0,0.020067]
[1609485588796,0.978288,29016.0,29004.0,0.60468124]
[1609485588998,0.978288,29016.0,29007.0,0.28384069]
[1609485589200,0.978288,29016.0,29008.0,0.27512589]
[1609485589594,0.978288,29016.0,29009.0,0.2550604]
[1609485589794,0.978288,29016.0,29010.0,0.220055]
[1609485589996,1.11929306,29016.0,29010.0,0.736355]
[1609485590401,1.11929306,29016.0,29012.0,0.020051]
[1609485590597,1.09429306,29016.0,29012.0,0.020051]
[1609485590904,0.524313,29015.0,29010.0,0.7163]
[1609485591130,0.524313,29015.0,29010.0,0.5163]
[1609485591131,0.08,29014.0,29010.0,0.5163]
[1609485591326,0.614313,29013.0,29010.0,0.5163]
[1609485592027,0.75531806,29013.0,29010.0,0.5163]
[1609485592231,0.08,29012.0,29010.0,0.5163]
[1609485592430,0.364313,29011.0,29010.0,0.5063]
[1609485593026,0.08,29012.0,29010.0,0.5063]
[1609485593227,0.14100506,29011.0,29010.0,0.5063]
[1609485593729,0.14100506,29011.0,29010.0,0.526359]
[1609485594131,0.08,29012.0,29010.0,0.526359]
[1609485594428,0.08,29012.0,29010.0,0.5063]
[1609485595128,0.08,29013.0,29010.0,0.5063]
[1609485595529,0.364313,29012.0,29010.0,0.5063]
[1609485595731,0.08,29013.0,29010.0,0.5063]
[1609485595933,0.22100506,29014.0,29010.0,0.5063]
[1609485596231,0.50531806,29013.0,29010.0,0.5063]
[1609485597348,0.08,29012.0,29010.0,0.5063]
[1609485597650,0.14100506,29011.0,29010.0,0.5063]
[1609485598349,0.14100506,29011.0,29010.0,0.526359]
[1609485598553,0.22100506,29015.0,29010.0,0.526359]
[1609485598753,0.22100506,29015.0,29011.0,0.245]
[1609485598954,0.22100506,29015.0,29012.0,0.020052]
[1609485599155,0.22100506,29015.0,29012.0,0.220052]
[1609485600250,0.22100506,29015.0,29010.0,0.7063]
[1609485600505,0.15,29014.0,29011.0,0.020052]
[1609485600708,0.08,29015.0,29011.0,0.220052]
[1609485603153,0.08,29015.0,29010.0,0.7063]
[1609485603353,0.08,29015.0,29011.0,0.220053]
[1609485603559,0.175,29014.0,29011.0,0.020053]
[1609485604783,0.08,29015.0,29011.0,0.020053]
[1609485605188,0.08,29015.0,29010.0,0.7063]
[1609485605384,0.08,29015.0,29010.0,0.5063]
[1609485605686,0.08,29015.0,29011.0,0.020053]
[1609485606489,0.08,29015.0,29010.0,0.5063]
[1609485606693,0.539313,29014.0,29010.0,0.5063]
[1609485606897,0.08,29013.0,29010.0,0.5063]
[1609485607088,0.364313,29012.0,29010.0,0.5063]
[1609485607290,3.394313,29011.0,29009.0,0.6883]
[1609485607490,0.505,29010.0,29006.0,0.0837112]
[1609485607689,0.82417493,29009.0,29006.0,0.0837112]
[1609485607898,0.33150302,29008.0,29004.0,0.08373299]
[1609485608090,0.364313,29007.0,29004.0,0.08373299]
[1609485608294,0.595,29009.0,29004.0,0.08373299]
[1609485608295,0.364326,29005.0,29004.0,0.08373299]
[1609485608591,0.364326,29005.0,29004.0,0.05509929]
[1609485611308,0.14,29006.0,29004.0,0.05509929]
[1609485611613,0.364326,29009.0,29004.0,0.05509929]
[1609485611814,0.849326,29009.0,29004.0,0.05509929]
[1609485613612,0.58,29008.0,29004.0,0.05509929]
[1609485613812,0.364326,29007.0,29004.0,0.05509929]
[1609485614112,0.14,29006.0,29004.0,0.05509929]
[1609485614319,0.364326,29005.0,29004.0,0.05509929]
[1609485616857,0.364326,29009.0,29004.0,0.05509929]
[1609485621787,0.546696,29009.0,29004.0,0.05509929]
[1609485622596,0.99,29008.0,29004.0,0.05509929]
[1609485622792,3.664326,29005.0,29000.0,0.1004]
[1609485622999,3.664326,29001.0,28999.0,0.0004]
[1609485623199,1.45109204,29000.0,28999.0,0.0004]
[1609485623398,0.99,28999.0,28996.0,0.001]
[1609485623696,3.99582902,28997.0,28996.0,0.001]
[1609485623901,5.419326,28997.0,28996.0,0.001]
[1609485624092,5.45279412,28997.0,28996.0,0.001]
[1609485624290,1.16279412,28997.0,28996.0,0.001]
[1609485624501,0.364326,28997.0,28996.0,0.001]
[1609485624702,0.5,28996.0,28989.0,0.0004]
[1609485624937,0.444326,28995.0,28990.0,0.5168]
[1609485625137,0.14,28994.0,28990.0,0.5168]
[1609485625336,0.364326,28993.0,28990.0,0.5168]
[1609485625731,0.08,28992.0,28990.0,0.5168]
[1609485626239,0.08,28999.0,28990.0,0.5168]
[1609485626435,0.08,28999.0,28991.0,0.155336]
[1609485626742,0.364326,28998.0,28990.0,0.5168]
[1609485627334,0.08,28997.0,28990.0,0.5168]
[1609485627535,0.364326,28996.0,28990.0,0.5118]
[1609485628335,0.544536,28996.0,28990.0,0.5118]
[1609485629637,0.544536,28996.0,28990.0,0.7118]
[1609485629839,0.364326,28996.0,28990.0,0.7118]
[1609485631095,0.37928218,29003.0,28990.0,0.7118]
[1609485631303,0.14102389,29004.0,28991.0,0.2]
[1609485631503,0.14102389,29004.0,28992.0,0.355318]
[1609485631701,0.14102389,29004.0,28993.0,0.5]
[1609485631901,0.14102389,29004.0,28994.0,0.355305]
[1609485632098,0.14102389,29006.0,28994.0,0.355305]
[1609485632297,0.14102389,29006.0,28995.0,0.6646]
[1609485632511,0.14102389,29006.0,28999.0,0.7165]
[1609485632709,0.14102389,29006.0,29000.0,0.355263]
[1609485633204,0.14102389,29012.0,29000.0,0.355263]
[1609485633405,0.364326,29011.0,28999.0,0.86985]
[1609485634005,0.364326,29011.0,29006.0,0.6887]
[1609485634244,0.17,29010.0,29006.0,0.90543]
[1609485634508,0.364326,29009.0,29006.0,0.90543]
[1609485634810,0.99,29008.0,29006.0,0.90543]
[1609485635007,2.764326,29007.0,29006.0,0.90543]
[1609485635210,0.364326,29007.0,29006.0,0.90543]
[1609485635410,0.564326,29007.0,29006.0,0.90543]
[1609485635612,0.364326,29007.0,29006.0,0.90543]
[1609485636014,0.33150302,29014.0,29006.0,1.060651]
[1609485636235,1.0,29015.0,29007.0,0.155207]
[1609485636427,0.953288,29016.0,29007.0,0.155207]
[1609485636831,0.953288,29016.0,29009.0,0.155193]
[1609485637227,0.953288,29016.0,29006.0,0.90543]
[1609485637228,0.094807,29007.0,29006.0,0.90543]
[1609485637426,0.094807,29007.0,29006.0,1.05643]
[1609485637621,0.084807,29007.0,29006.0,1.05643]
[1609485638027,0.084807,29007.0,29006.0,1.43143]
[1609485640925,0.084807,29007.0,29006.0,1.68963]
[1609485641532,0.953288,29016.0,29007.0,2.081493]
[1609485641745,0.953288,29016.0,29008.0,0.29]
[1609485642249,0.953288,29016.0,29007.0,0.431493]
[1609485642849,0.05874427,29007.0,29006.0,1.0979]
[1609485645354,0.05874427,29007.0,29006.0,1.5129]
[1609485647838,0.05874427,29007.0,29006.0,2.0629]
[1609485648039,0.05874427,29007.0,29006.0,2.26514]
[1609485648237,0.05874427,29007.0,29006.0,1.71514]
[1609485649342,0.05874427,29007.0,29006.0,1.5129]
[1609485650945,0.05874427,29007.0,29006.0,1.3129]
[1609485651562,0.05874427,29007.0,29006.0,1.5129]
[1609485652966,0.05874427,29007.0,29006.0,1.3129]
[1609485653368,0.953288,29016.0,29007.0,1.2]
[1609485654066,0.99,29015.0,29006.0,1.3129]
[1609485654270,1.38778812,29015.0,29006.0,0.8979]
[1609485654468,0.99,29014.0,29006.0,0.8979]
[1609485654666,0.35,29014.0,29006.0,0.8979]
[1609485655268,0.953288,29016.0,29006.0,0.8979]
[1609485655472,1.35432,29015.0,29011.0,0.5164]
[1609485655668,0.36432,29015.0,29011.0,0.5164]
[1609485655871,0.36432,29013.0,29011.0,0.5164]
[1609485656273,0.52664,29013.0,29011.0,0.5164]
[1609485657098,1.51664,29013.0,29011.0,0.5164]
[1609485657301,2.76932,29012.0,29011.0,0.5164]
[1609485657698,0.61932,29012.0,29011.0,0.5164]
[1609485657899,1.46432,29012.0,29011.0,0.5164]
[1609485658101,0.36432,29012.0,29011.0,0.5164]
[1609485658500,0.953288,29016.0,29011.0,0.5164]
[1609485658703,0.36432,29015.0,29011.0,0.5164]
[1609485658906,0.345,29014.0,29011.0,0.5164]
[1609485659102,0.36432,29013.0,29011.0,0.5164]
[1609485663188,4.04,29012.0,29011.0,0.5164]
[1609485663387,5.32577,29012.0,29011.0,0.5164]
[1609485663588,5.43923812,29012.0,29011.0,0.5164]
[1609485663888,0.36432,29008.0,29006.0,0.6397]
[1609485664090,4.40432,29007.0,29006.0,0.6397]
[1609485664332,3.66432,29006.0,29003.0,0.17923894]
[1609485664530,3.3,29004.0,29003.0,0.17923894]
[1609485664732,4.65432,29004.0,29003.0,0.17923894]
[1609485664932,3.63150302,29003.0,29002.0,0.04827641]
[1609485665134,4.65432,29003.0,28997.0,1.05035649]
[1609485665329,0.36432,29002.0,28997.0,0.94671272]
[1609485665530,0.36432,29002.0,28997.0,0.30511272]
[1609485665731,3.3,29003.0,28998.0,0.04829135]
[1609485665928,0.33150302,29001.0,28998.0,0.04829135]
[1609485666236,0.53142,29000.0,28999.0,0.5167]
[1609485666834,0.1671,29000.0,28999.0,0.56500171]
[1609485667028,0.1671,29000.0,28999.0,0.04830171]
[1609485667234,0.08,29007.0,28999.0,0.04830171]
[1609485667442,0.03346812,29010.0,28999.0,0.47666171]
[1609485667641,0.36432,29013.0,29003.0,0.5166]
[1609485667839,1.73024608,29013.0,29003.0,0.7166]
[1609485668067,1.36592608,29013.0,29003.0,0.7166]
[1609485668236,0.63432,29012.0,29003.0,0.5166]
[1609485668433,1.62432,29012.0,29003.0,0.5166]
[1609485668743,0.36432,29010.0,29004.0,0.04826281]
[1609485668929,0.99,29009.0,29004.0,0.04826281]
[1609485669234,0.63932,29008.0,29004.0,0.04826281]
[1609485670268,0.36432,29008.0,29003.0,0.5166]
[1609485670470,0.36432,29008.0,29005.0,0.04826804]
[1609485670673,0.36432,29008.0,29004.0,0.04826493]
[1609485674595,0.165,29011.0,29004.0,0.04826493]
[1609485674794,0.36432,29010.0,29004.0,0.04826493]
[1609485675674,1.7,29009.0,29003.0,0.5166]
[1609485675873,0.01651,29007.0,29003.0,0.5166]
[1609485680712,0.36432,29006.0,29003.0,0.5166]
[1609485682539,0.35432,29006.0,29003.0,0.5166]
[1609485682942,0.99,29005.0,29003.0,0.5166]
[1609485683249,0.99,29005.0,28999.0,0.12577798]
[1609485683250,0.364324,29002.0,28999.0,0.12577798]
[1609485683450,3.57151,29004.0,28996.0,0.95079196]
[1609485683451,2.864324,29000.0,28996.0,0.95079196]
[1609485683650,0.595,28999.0,28996.0,0.82499664]
[1609485683843,0.364324,28998.0,28996.0,0.82499664]
[1609485684245,2.115,28997.0,28996.0,0.82499664]
[1609485684445,2.479324,28997.0,28996.0,0.82499664]
[1609485684646,0.929324,28997.0,28996.0,0.82499664]
[1609485685045,0.364324,28997.0,28996.0,0.82499664]
[1609485685450,0.01651,28998.0,28996.0,0.82499664]
[1609485685645,0.01651,28998.0,28997.0,0.010037]
[1609485685843,0.01651,28998.0,28996.0,0.82499664]
[1609485686246,2.414324,28997.0,28996.0,0.82499664]
[1609485686447,3.804324,28997.0,28996.0,0.82499664]
[1609485688761,3.804324,28997.0,28996.0,0.82095242]
[1609485688962,1.754324,28997.0,28996.0,0.82095242]
[1609485690646,0.764324,28997.0,28996.0,0.82095242]
[1609485690813,0.364324,28997.0,28996.0,0.86614529]
[1609485691216,0.46710049,28997.0,28996.0,0.86614529]
[1609485691513,1.11710049,28997.0,28996.0,0.86614529]
[1609485691713,1.33210049,28997.0,28996.0,0.86614529]
[1609485692013,0.68210049,28997.0,28996.0,0.86614529]
[1609485692317,0.54210049,28997.0,28996.0,0.86614529]
[1609485692548,2.98210049,28997.0,28996.0,0.86614529]
[1609485693950,2.879324,28997.0,28996.0,0.86614529]
[1609485694851,1.889324,28997.0,28996.0,0.86614529]
[1609485695153,1.9927109,28997.0,28996.0,0.86614529]
[1609485695352,1.889324,28997.0,28996.0,0.86614529]
[1609485695552,0.439324,28997.0,28996.0,0.86614529]
[1609485695756,0.224324,28997.0,28996.0,0.86614529]
[1609485696057,0.15834,28998.0,28996.0,0.85114529]
[1609485696286,0.01651,28998.0,28997.0,0.150036]
[1609485696777,0.01651,28998.0,28997.0,0.19507878]
[1609485697680,0.01651,28998.0,28997.0,0.33557841]
[1609485697987,0.01651,28998.0,28997.0,0.50557841]
[1609485698289,0.14102346,29011.0,28997.0,1.96623066]
[1609485698478,0.70765622,29015.0,28997.0,1.96623066]
[1609485698687,0.3761532,29014.0,28998.0,0.84699963]
[1609485698878,1.3661532,29014.0,28999.0,0.29050663]
[1609485699085,0.33150302,29013.0,28999.0,0.54870663]
[1609485699277,0.3761532,29015.0,28999.0,0.54870663]
[1609485699487,1.3661532,29015.0,28999.0,0.72024447]
[1609485699680,0.71150302,29014.0,28999.0,0.72024447]
[1609485699880,1.73815622,29014.0,29000.0,0.18640756]
[1609485700083,0.33150302,29013.0,29004.0,0.5164]
[1609485700283,0.88650302,29013.0,29005.0,0.149969]
[1609485700484,0.41,29012.0,29005.0,0.149969]
[1609485700679,0.3761532,29014.0,29005.0,0.149969]
[1609485700888,0.3761532,29014.0,29003.0,0.6885]
[1609485700889,0.33150302,29013.0,29003.0,0.6885]
[1609485701082,0.99,29014.0,29004.0,0.149972]
[1609485701280,0.69583102,29013.0,29003.0,0.6885]
[1609485701482,0.67650302,29013.0,29004.0,0.04590328]
[1609485701677,0.345,29013.0,29004.0,0.04590328]
[1609485702110,0.345,29013.0,29008.0,0.5165]
[1609485702406,0.364328,29012.0,29008.0,0.5165]
[1609485703809,0.17105,29015.0,29008.0,0.5165]
[1609485704014,0.99,29009.0,29007.0,4.6e-06]
[1609485704221,1.550678,29008.0,29007.0,4.6e-06]
[1609485704412,2.04798662,29008.0,29007.0,4.6e-06]
[1609485704811,2.10748699,29008.0,29007.0,4.6e-06]
[1609485705013,2.53748699,29008.0,29007.0,4.6e-06]
[1609485706555,2.78563909,29008.0,29007.0,4.6e-06]
[1609485706758,2.53748699,29008.0,29007.0,4.6e-06]
[1609485706961,2.78563909,29008.0,29007.0,4.6e-06]
[1609485707457,2.53748699,29008.0,29007.0,4.6e-06]
[1609485708201,2.78563909,29008.0,29007.0,4.6e-06]
[1609485708398,2.53748699,29008.0,29007.0,4.6e-06]
[1609485709198,2.78563909,29008.0,29007.0,4.6e-06]
[1609485709404,1.31766887,29008.0,29007.0,4.6e-06]
[1609485709613,0.794328,29008.0,29007.0,4.6e-06]
[1609485710009,0.43,29008.0,29007.0,0.1499646]
[1609485710208,1.0,29010.0,29007.0,0.1499646]
[1609485710608,0.364328,29009.0,29007.0,4.6e-06]
[1609485710910,1.0,29014.0,29008.0,0.149953]
[1609485711107,0.649328,29013.0,29007.0,4.6e-06]
[1609485711924,0.33150302,29012.0,29007.0,4.6e-06]
[1609485712225,0.509328,29011.0,29007.0,4.6e-06]
[1609485712427,0.33150302,29015.0,29007.0,4.6e-06]
[1609485712727,0.364328,29014.0,29007.0,4.6e-06]
[1609485712924,0.39779612,29014.0,29007.0,4.6e-06]
[1609485713322,0.364328,29014.0,29007.0,4.6e-06]
[1609485713524,0.395,29013.0,29007.0,4.6e-06]
[1609485713725,0.364328,29012.0,29007.0,4.6e-06]
[1609485713922,0.359328,29012.0,29007.0,4.6e-06]
[1609485714823,0.46319916,29012.0,29007.0,0.1019486]
[1609485715026,0.359328,29012.0,29007.0,4.6e-06]
[1609485716231,1.349328,29012.0,29007.0,4.6e-06]
[1609485716427,0.53650302,29011.0,29007.0,4.6e-06]
[1609485716628,0.364328,29010.0,29007.0,4.6e-06]
[1609485719358,1.07,29009.0,29007.0,4.6e-06]
[1609485719561,0.83681037,29008.0,29007.0,4.6e-06]
[1609485719858,0.77731,29008.0,29007.0,4.6e-06]
[1609485720459,0.56931,29008.0,29007.0,4.6e-06]
[1609485720715,1.0,29014.0,29007.0,0.1549686]
[1609485720881,0.42381037,29013.0,29007.0,4.6e-06]
[1609485721089,0.225,29012.0,29007.0,4.6e-06]
[1609485721280,0.36431,29011.0,29007.0,4.6e-06]
[1609485721479,0.28450037,29012.0,29007.0,4.6e-06]
[1609485721879,0.36431,29011.0,29007.0,4.6e-06]
[1609485722080,0.225,29012.0,29007.0,4.6e-06]
[1609485722283,1.35431,29011.0,29007.0,4.6e-06]
[1609485722483,1.225,29010.0,29007.0,4.6e-06]
[1609485722721,0.36431,29009.0,29007.0,4.6e-06]
[1609485729457,0.74316754,29008.0,29007.0,4.6e-06]